[Event "*** Titled Tuesday Blitz"]
[Site "Chess.com"]
[Date "2020.04.14"]
[Round "1"]
[White "Galileo22"]
[Black "krzyzan94"]
[Result "0-1"]
[WhiteElo "2332"]
[BlackElo "2678"]
[TimeControl "180+1"]
[EndTime "10:07:21 PDT"]
[Termination "krzyzan94 won by resignation"]

1. d4 {[%clk 0:03:00.5]} 1... Nf6 {[%clk 0:02:59.4]} 2. Nf3 {[%clk 0:03:00.6]}
2... e6 {[%clk 0:02:55.9]} 3. c4 {[%clk 0:02:58.6]} 3... d5 {[%clk 0:02:55.4]}
4. Nc3 {[%clk 0:02:55.6]} 4... Be7 {[%clk 0:02:55.4]} 5. Bg5 {[%clk 0:02:45.1]}
5... h6 {[%clk 0:02:55.1]} 6. Bh4 {[%clk 0:02:22.8]} 6... O-O {[%clk 0:02:54.6]}
7. e3 {[%clk 0:02:22.3]} 7... Ne4 {[%clk 0:02:55]} 8. Bxe7 {[%clk 0:02:18.8]}
8... Qxe7 {[%clk 0:02:55.3]} 9. Qc2 {[%clk 0:02:12.9]} 9... Nxc3 {[%clk
0:02:49.2]} 10. Qxc3 {[%clk 0:02:09.9]} 10... b6 {[%clk 0:02:28.3]} 11. cxd5
{[%clk 0:01:56.4]} 11... exd5 {[%clk 0:02:29.2]} 12. Rc1 {[%clk 0:01:56.2]}
12... c6 {[%clk 0:02:25.7]} 13. Bd3 {[%clk 0:01:50.6]} 13... Bb7 {[%clk
0:02:24.3]} 14. O-O {[%clk 0:01:45.4]} 14... Nd7 {[%clk 0:02:24]} 15. b4 {[%clk
0:01:41]} 15... Rac8 {[%clk 0:02:21]} 16. a4 {[%clk 0:01:32.6]} 16... Rfe8
{[%clk 0:02:13.7]} 17. Qb2 {[%clk 0:01:25.5]} 17... Qd6 {[%clk 0:02:10.7]} 18.
a5 {[%clk 0:01:22.8]} 18... Rb8 {[%clk 0:01:40.6]} 19. a6 {[%clk 0:01:19.7]}
19... Ba8 {[%clk 0:01:31.5]} 20. b5 {[%clk 0:00:55.3]} 20... c5 {[%clk
0:01:30.7]} 21. Bb1 {[%clk 0:00:50.3]} 21... g6 {[%clk 0:01:24.5]} 22. Rfd1
{[%clk 0:00:46.5]} 22... Rbc8 {[%clk 0:01:24.1]} 23. Nd2 {[%clk 0:00:37.2]}
23... c4 {[%clk 0:01:22.8]} 24. Qc3 {[%clk 0:00:34.3]} 24... Nf6 {[%clk
0:01:18]} 25. f3 {[%clk 0:00:32.4]} 25... Rcd8 {[%clk 0:01:12.5]} 26. Re1 {[%clk
0:00:32.1]} 26... h5 {[%clk 0:01:09.3]} 27. Bc2 {[%clk 0:00:30.9]} 27... h4
{[%clk 0:01:09.5]} 28. Rcd1 {[%clk 0:00:27.4]} 28... Kg7 {[%clk 0:01:09]} 29.
Nb1 {[%clk 0:00:24.8]} 29... Nh5 {[%clk 0:01:05.9]} 30. Qd2 {[%clk 0:00:15.7]}
30... h3 {[%clk 0:01:00.4]} 31. g4 {[%clk 0:00:13.2]} 31... Nf6 {[%clk
0:01:00.6]} 32. Nc3 {[%clk 0:00:12.8]} 32... Re7 {[%clk 0:00:57]} 33. Rb1 {[%clk
0:00:12.6]} 33... Rde8 {[%clk 0:00:57.2]} 34. Qf2 {[%clk 0:00:13]} 34... Qa3
{[%clk 0:00:56.2]} 35. Qd2 {[%clk 0:00:12.2]} 35... Nh7 {[%clk 0:00:54.7]} 36.
Kf2 {[%clk 0:00:11.5]} 36... Ng5 {[%clk 0:00:54.1]} 37. f4 {[%clk 0:00:10.1]}
37... Ne6 {[%clk 0:00:46.5]} 38. Ra1 {[%clk 0:00:10.3]} 38... Qb4 {[%clk
0:00:45.7]} 39. Reb1 {[%clk 0:00:10.5]} 39... Qd6 {[%clk 0:00:45.9]} 40. Rg1
{[%clk 0:00:09.9]} 40... g5 {[%clk 0:00:46.3]} 41. f5 {[%clk 0:00:03.1]} 41...
Qxh2+ {[%clk 0:00:43.4]} 42. Ke1 {[%clk 0:00:03.4]} 42... Qxg1+ {[%clk
0:00:43.7]} 43. Ke2 {[%clk 0:00:03.8]} 43... Nf4+ {[%clk 0:00:44.1]} 44. Kf3
{[%clk 0:00:03.5]} 44... Qxa1 {[%clk 0:00:42.5]} 45. exf4 {[%clk 0:00:03.1]}
45... Re3+ {[%clk 0:00:42.5]} 46. Qxe3 {[%clk 0:00:02.8]} 46... Rxe3+ {[%clk
0:00:43.4]} 47. Kxe3 {[%clk 0:00:03.1]} 47... Qxc3+ {[%clk 0:00:44.2]} 48. Kf2
{[%clk 0:00:02.9]} 48... Qxc2+ {[%clk 0:00:44.6]} 0-1

[Event "*** Titled Tuesday Blitz"]
[Site "Chess.com"]
[Date "2020.04.14"]
[Round "1"]
[White "sganerdene"]
[Black "CookiesAndIceCream"]
[Result "1-0"]
[WhiteElo "2680"]
[BlackElo "2333"]
[TimeControl "180+1"]
[EndTime "10:07:23 PDT"]
[Termination "sganerdene won by resignation"]

1. e4 {[%clk 0:03:00.9]} 1... e6 {[%clk 0:02:59.3]} 2. d4 {[%clk 0:02:59.8]}
2... d5 {[%clk 0:02:59.6]} 3. Nc3 {[%clk 0:02:59.8]} 3... Nf6 {[%clk 0:02:59.6]}
4. Bg5 {[%clk 0:02:59]} 4... dxe4 {[%clk 0:02:59.3]} 5. Nxe4 {[%clk 0:02:58.8]}
5... Be7 {[%clk 0:02:59.8]} 6. Bxf6 {[%clk 0:02:59.1]} 6... gxf6 {[%clk
0:02:59.9]} 7. Nf3 {[%clk 0:02:59.3]} 7... f5 {[%clk 0:03:00.4]} 8. Ng3 {[%clk
0:02:59.1]} 8... h5 {[%clk 0:03:00]} 9. h4 {[%clk 0:02:58.6]} 9... c5 {[%clk
0:02:59.9]} 10. Bb5+ {[%clk 0:02:48.9]} 10... Bd7 {[%clk 0:02:46.9]} 11. Bxd7+
{[%clk 0:02:47.8]} 11... Qxd7 {[%clk 0:02:34]} 12. c3 {[%clk 0:02:47.6]} 12...
Nc6 {[%clk 0:02:32.3]} 13. dxc5 {[%clk 0:02:42.5]} 13... Qxd1+ {[%clk
0:02:30.2]} 14. Rxd1 {[%clk 0:02:42.9]} 14... Bxc5 {[%clk 0:02:30.4]} 15. Ke2
{[%clk 0:02:42.4]} 15... Rd8 {[%clk 0:02:25.4]} 16. Rxd8+ {[%clk 0:02:30.3]}
16... Kxd8 {[%clk 0:02:25.3]} 17. Rd1+ {[%clk 0:02:27.9]} 17... Ke7 {[%clk
0:02:25.5]} 18. Kf1 {[%clk 0:02:19.1]} 18... Bd6 {[%clk 0:02:06.6]} 19. Ne2
{[%clk 0:02:18.6]} 19... Rg8 {[%clk 0:02:04.1]} 20. g3 {[%clk 0:02:15.8]} 20...
Rg4 {[%clk 0:02:00.4]} 21. Ned4 {[%clk 0:02:00.5]} 21... f4 {[%clk 0:01:53.9]}
22. Nxc6+ {[%clk 0:01:59.4]} 22... bxc6 {[%clk 0:01:53.3]} 23. Nd4 {[%clk
0:01:47.5]} 23... Kd7 {[%clk 0:01:43]} 24. Nf3 {[%clk 0:01:36.2]} 24... Kc7
{[%clk 0:01:40.1]} 25. gxf4 {[%clk 0:01:25.4]} 25... Rxf4 {[%clk 0:01:38.4]} 26.
Ke2 {[%clk 0:01:25.4]} 26... Bc5 {[%clk 0:01:32.7]} 27. Rg1 {[%clk 0:01:21.7]}
27... Rf5 {[%clk 0:01:16.9]} 28. Rg5 {[%clk 0:01:18.8]} 28... Rxg5 {[%clk
0:00:59.5]} 29. Nxg5 {[%clk 0:01:18.7]} 29... Be7 {[%clk 0:00:59.9]} 30. Nxf7
{[%clk 0:00:59.5]} 30... Bxh4 {[%clk 0:00:59.5]} 31. f4 {[%clk 0:00:59.7]} 31...
Bf6 {[%clk 0:00:53.1]} 32. Kf3 {[%clk 0:00:59.3]} 32... Kd7 {[%clk 0:00:46.6]}
33. Ne5+ {[%clk 0:00:45.8]} 33... Bxe5 {[%clk 0:00:36.3]} 34. fxe5 {[%clk
0:00:46.7]} 34... c5 {[%clk 0:00:36.8]} 35. c4 {[%clk 0:00:40.7]} 35... Kc6
{[%clk 0:00:21]} 36. Kf4 {[%clk 0:00:40.6]} 36... Kb6 {[%clk 0:00:21.5]} 37. Kg5
{[%clk 0:00:40.7]} 37... Ka5 {[%clk 0:00:22.4]} 38. Kxh5 {[%clk 0:00:40.1]}
38... Kb4 {[%clk 0:00:22.9]} 39. Kg6 {[%clk 0:00:34.6]} 39... Kxc4 {[%clk
0:00:22.1]} 40. Kf6 {[%clk 0:00:34.5]} 40... Kd5 {[%clk 0:00:21.4]} 41. b3
{[%clk 0:00:34.5]} 41... a6 {[%clk 0:00:20]} 42. a3 {[%clk 0:00:34.6]} 42... a5
{[%clk 0:00:18.5]} 43. a4 {[%clk 0:00:34.9]} 43... c4 {[%clk 0:00:19]} 44. bxc4+
{[%clk 0:00:34.7]} 44... Kxc4 {[%clk 0:00:19.9]} 45. Kxe6 {[%clk 0:00:35.1]}
45... Kb4 {[%clk 0:00:20.4]} 46. Kd5 {[%clk 0:00:35.5]} 46... Kxa4 {[%clk
0:00:20.9]} 47. e6 {[%clk 0:00:36]} 47... Kb3 {[%clk 0:00:21.3]} 48. e7 {[%clk
0:00:36.5]} 48... a4 {[%clk 0:00:21.8]} 49. e8=Q {[%clk 0:00:36.9]} 49... a3
{[%clk 0:00:22.3]} 50. Qb5+ {[%clk 0:00:37.2]} 1-0

[Event "*** Titled Tuesday Blitz"]
[Site "Chess.com"]
[Date "2020.04.14"]
[Round "1"]
[White "chenxiaoyuer"]
[Black "Mikhail_Golubev"]
[Result "1-0"]
[WhiteElo "2067"]
[BlackElo "2510"]
[TimeControl "180+1"]
[EndTime "10:07:24 PDT"]
[Termination "chenxiaoyuer won on time"]

1. e4 {[%clk 0:02:59.6]} 1... c5 {[%clk 0:02:59.4]} 2. Nf3 {[%clk 0:02:59.2]}
2... d6 {[%clk 0:02:59.5]} 3. d4 {[%clk 0:02:58.9]} 3... Nf6 {[%clk 0:02:59.4]}
4. Nc3 {[%clk 0:02:56.2]} 4... cxd4 {[%clk 0:02:59.4]} 5. Nxd4 {[%clk
0:02:54.5]} 5... Nc6 {[%clk 0:02:59.3]} 6. Be2 {[%clk 0:02:52.6]} 6... g6 {[%clk
0:02:58.2]} 7. O-O {[%clk 0:02:51.7]} 7... Bg7 {[%clk 0:02:58.3]} 8. Nb3 {[%clk
0:02:50.6]} 8... O-O {[%clk 0:02:58.1]} 9. Bg5 {[%clk 0:02:49.2]} 9... Be6
{[%clk 0:02:54.8]} 10. Kh1 {[%clk 0:02:48.5]} 10... Na5 {[%clk 0:02:54.2]} 11.
f4 {[%clk 0:02:47.8]} 11... Nc4 {[%clk 0:02:54.1]} 12. f5 {[%clk 0:02:47.9]}
12... Nxb2 {[%clk 0:02:53.7]} 13. Qc1 {[%clk 0:02:47.8]} 13... Bc4 {[%clk
0:02:53.7]} 14. Qxb2 {[%clk 0:02:48.1]} 14... Bxe2 {[%clk 0:02:52.6]} 15. Nxe2
{[%clk 0:02:49]} 15... Nxe4 {[%clk 0:02:52.6]} 16. f6 {[%clk 0:02:49.5]} 16...
Nxf6 {[%clk 0:02:52.4]} 17. Nbd4 {[%clk 0:02:49.2]} 17... Qd7 {[%clk 0:02:50.7]}
18. Nc3 {[%clk 0:02:45.3]} 18... Rac8 {[%clk 0:02:42.4]} 19. Rae1 {[%clk
0:02:36.8]} 19... Rfe8 {[%clk 0:02:13.7]} 20. Rf3 {[%clk 0:02:21.3]} 20... Rc4
{[%clk 0:01:55.2]} 21. Rd1 {[%clk 0:01:53]} 21... Qg4 {[%clk 0:01:36.5]} 22. Rg3
{[%clk 0:01:33.4]} 22... Rxd4 {[%clk 0:01:26.8]} 23. Rxg4 {[%clk 0:01:28.4]}
23... Nxg4 {[%clk 0:01:22.8]} 24. Rf1 {[%clk 0:00:55.2]} 24... e6 {[%clk
0:00:19]} 25. Qxb7 {[%clk 0:00:38.9]} 25... Ne5 {[%clk 0:00:16.4]} 26. Ne2
{[%clk 0:00:35.9]} 26... Rc4 {[%clk 0:00:13.5]} 27. c3 {[%clk 0:00:29.1]} 27...
Rec8 {[%clk 0:00:08.8]} 28. Bf6 {[%clk 0:00:26.5]} 28... R4c7 {[%clk 0:00:07]}
29. Qb3 {[%clk 0:00:23.4]} 29... Bxf6 {[%clk 0:00:06.2]} 30. Rxf6 {[%clk
0:00:23.2]} 30... d5 {[%clk 0:00:06.3]} 31. Qb2 {[%clk 0:00:19.9]} 31... Nd3
{[%clk 0:00:06.2]} 32. Qd2 {[%clk 0:00:19.2]} 32... Nc5 {[%clk 0:00:06.3]} 33.
Rf1 {[%clk 0:00:18.4]} 33... Ne4 {[%clk 0:00:06.3]} 34. Qf4 {[%clk 0:00:18]}
34... Kg7 {[%clk 0:00:03.5]} 35. c4 {[%clk 0:00:17.2]} 35... f5 {[%clk
0:00:01.7]} 36. cxd5 {[%clk 0:00:16.6]} 36... exd5 {[%clk 0:00:01.9]} 37. Qe5+
{[%clk 0:00:16.5]} 37... Kh6 {[%clk 0:00:02.1]} 38. Qf4+ {[%clk 0:00:12.7]}
38... Kg7 {[%clk 0:00:01.4]} 39. Nd4 {[%clk 0:00:12.3]} 1-0

[Event "*** Titled Tuesday Blitz"]
[Site "Chess.com"]
[Date "2020.04.14"]
[Round "1"]
[White "jacky72"]
[Black "Chichin_chao"]
[Result "0-1"]
[WhiteElo "2689"]
[BlackElo "2370"]
[TimeControl "180+1"]
[EndTime "10:07:25 PDT"]
[Termination "Chichin_chao won by resignation"]

1. d4 {[%clk 0:03:00.9]} 1... Nf6 {[%clk 0:02:58.2]} 2. c4 {[%clk 0:03:01]} 2...
d6 {[%clk 0:02:58]} 3. Nf3 {[%clk 0:03:01.2]} 3... Nbd7 {[%clk 0:02:58.3]} 4.
Nc3 {[%clk 0:03:01.5]} 4... e5 {[%clk 0:02:58.7]} 5. e4 {[%clk 0:03:01.5]} 5...
Be7 {[%clk 0:02:58.2]} 6. Be2 {[%clk 0:03:01.7]} 6... O-O {[%clk 0:02:58]} 7.
O-O {[%clk 0:03:01.9]} 7... exd4 {[%clk 0:02:57.6]} 8. Nxd4 {[%clk 0:03:01.7]}
8... Re8 {[%clk 0:02:57.9]} 9. f3 {[%clk 0:03:01.8]} 9... Bf8 {[%clk 0:02:58.2]}
10. Kh1 {[%clk 0:03:02.1]} 10... a5 {[%clk 0:02:57.3]} 11. Be3 {[%clk
0:03:02.1]} 11... c6 {[%clk 0:02:54.7]} 12. Bg1 {[%clk 0:03:00.9]} 12... Nc5
{[%clk 0:02:53.7]} 13. Qd2 {[%clk 0:03:00.9]} 13... a4 {[%clk 0:02:52.3]} 14.
Rad1 {[%clk 0:03:00.4]} 14... Qa5 {[%clk 0:02:46.5]} 15. Qc2 {[%clk 0:02:54.7]}
15... Bd7 {[%clk 0:02:34.3]} 16. Nf5 {[%clk 0:02:50.8]} 16... Bxf5 {[%clk
0:02:20.8]} 17. exf5 {[%clk 0:02:50.6]} 17... Rad8 {[%clk 0:01:44.9]} 18. Bd4
{[%clk 0:02:47.5]} 18... Nfd7 {[%clk 0:01:41.4]} 19. Rfe1 {[%clk 0:02:45.4]}
19... Be7 {[%clk 0:01:35.9]} 20. Ne4 {[%clk 0:02:41.6]} 20... Nxe4 {[%clk
0:01:33.9]} 21. fxe4 {[%clk 0:02:42.5]} 21... Bf6 {[%clk 0:01:31.7]} 22. Bf2
{[%clk 0:02:38.6]} 22... Qb4 {[%clk 0:01:22.1]} 23. b3 {[%clk 0:02:31.4]} 23...
axb3 {[%clk 0:01:22.3]} 24. axb3 {[%clk 0:02:32.3]} 24... Ra8 {[%clk 0:01:22.6]}
25. Bf3 {[%clk 0:02:26.6]} 25... Ra3 {[%clk 0:01:17.4]} 26. Rb1 {[%clk
0:02:26.5]} 26... Rea8 {[%clk 0:01:15.6]} 27. Qd3 {[%clk 0:02:20.6]} 27... Be5
{[%clk 0:01:09.5]} 28. Red1 {[%clk 0:02:16.2]} 28... Nc5 {[%clk 0:01:09]} 29.
Bxc5 {[%clk 0:02:16]} 29... Qxc5 {[%clk 0:01:09.9]} 30. Rd2 {[%clk 0:02:02.2]}
30... Qb4 {[%clk 0:01:09.3]} 31. Rdd1 {[%clk 0:02:00.3]} 31... Ra2 {[%clk
0:01:09.2]} 32. Qe3 {[%clk 0:01:58.6]} 32... R8a3 {[%clk 0:01:03.1]} 33. Qg5
{[%clk 0:01:53.5]} 33... f6 {[%clk 0:00:37.5]} 34. Qh5 {[%clk 0:01:52.8]} 34...
Ra8 {[%clk 0:00:37.9]} 35. Qh4 {[%clk 0:01:46.3]} 35... R2a3 {[%clk 0:00:35.8]}
36. Qe1 {[%clk 0:01:30.6]} 36... Qxe1+ {[%clk 0:00:32.8]} 37. Rxe1 {[%clk
0:01:31.5]} 37... Kf7 {[%clk 0:00:32.4]} 38. Red1 {[%clk 0:01:26.4]} 38... Ke7
{[%clk 0:00:32.3]} 39. Kg1 {[%clk 0:01:25.8]} 39... Ra2 {[%clk 0:00:31.8]} 40.
g3 {[%clk 0:01:21.6]} 40... h5 {[%clk 0:00:27.7]} 41. Bxh5 {[%clk 0:01:14.5]}
41... Rh8 {[%clk 0:00:27.1]} 42. g4 {[%clk 0:01:14.8]} 42... Bxh2+ {[%clk
0:00:26.2]} 43. Kf1 {[%clk 0:01:14.2]} 43... Be5 {[%clk 0:00:26.6]} 44. b4
{[%clk 0:01:12.5]} 44... Rha8 {[%clk 0:00:26.1]} 45. c5 {[%clk 0:01:12.6]} 45...
Rh2 {[%clk 0:00:23]} 46. cxd6+ {[%clk 0:01:12]} 46... Bxd6 {[%clk 0:00:23.9]}
47. Rd3 {[%clk 0:00:46.7]} 47... Raa2 {[%clk 0:00:20.6]} 48. Kg1 {[%clk
0:00:47]} 48... Bc7 {[%clk 0:00:17.8]} 49. Rbd1 {[%clk 0:00:38.6]} 49... Bb6+
{[%clk 0:00:18]} 50. Rd4 {[%clk 0:00:39.1]} 50... Rad2 {[%clk 0:00:17.9]} 51.
Rxd2 {[%clk 0:00:37.6]} 51... Rxd2 {[%clk 0:00:18.8]} 52. Kh1 {[%clk 0:00:37.4]}
52... Rxd4 {[%clk 0:00:19.2]} 0-1

[Event "*** Titled Tuesday Blitz"]
[Site "Chess.com"]
[Date "2020.04.14"]
[Round "1"]
[White "EugeneRougon"]
[Black "BabyBoss31"]
[Result "1-0"]
[WhiteElo "2691"]
[BlackElo "2339"]
[TimeControl "180+1"]
[EndTime "10:07:26 PDT"]
[Termination "EugeneRougon won by checkmate"]

1. e4 {[%clk 0:03:00.9]} 1... e6 {[%clk 0:03:00]} 2. d4 {[%clk 0:03:00.6]} 2...
d5 {[%clk 0:03:00.6]} 3. Bd2 {[%clk 0:03:00.8]} 3... dxe4 {[%clk 0:02:58.2]} 4.
Be3 {[%clk 0:02:59.6]} 4... Nf6 {[%clk 0:02:55]} 5. h3 {[%clk 0:02:57.3]} 5...
c5 {[%clk 0:02:54]} 6. Ne2 {[%clk 0:02:55.1]} 6... Nc6 {[%clk 0:02:53.1]} 7.
Nbc3 {[%clk 0:02:54.2]} 7... cxd4 {[%clk 0:02:26]} 8. Nxd4 {[%clk 0:02:55.1]}
8... Nxd4 {[%clk 0:02:26.3]} 9. Bxd4 {[%clk 0:02:43.8]} 9... Be7 {[%clk
0:02:26.5]} 10. Qd2 {[%clk 0:02:27.6]} 10... O-O {[%clk 0:02:17.5]} 11. O-O-O
{[%clk 0:02:27.6]} 11... a6 {[%clk 0:02:05.7]} 12. g4 {[%clk 0:02:17]} 12... b5
{[%clk 0:01:59.1]} 13. g5 {[%clk 0:02:08.1]} 13... Nd5 {[%clk 0:01:45]} 14. Nxe4
{[%clk 0:02:03.9]} 14... Bb7 {[%clk 0:01:36.2]} 15. Rg1 {[%clk 0:02:01.8]} 15...
Rc8 {[%clk 0:01:33.8]} 16. Nf6+ {[%clk 0:01:49.7]} 16... Kh8 {[%clk 0:01:14.7]}
17. Nh5 {[%clk 0:01:32.1]} 17... Rg8 {[%clk 0:00:55.4]} 18. Kb1 {[%clk
0:00:56.5]} 18... Qc7 {[%clk 0:00:41.7]} 19. Bd3 {[%clk 0:00:29.7]} 19... e5
{[%clk 0:00:33.9]} 20. Be3 {[%clk 0:00:19.8]} 20... Rcd8 {[%clk 0:00:28.4]} 21.
Qe2 {[%clk 0:00:18.2]} 21... Nb4 {[%clk 0:00:18.6]} 22. Ng3 {[%clk 0:00:17]}
22... Nxd3 {[%clk 0:00:15.5]} 23. Rxd3 {[%clk 0:00:17.9]} 23... Rxd3 {[%clk
0:00:13.7]} 24. Qxd3 {[%clk 0:00:18.8]} 24... Bc5 {[%clk 0:00:09.5]} 25. a3
{[%clk 0:00:17.8]} 25... Bxe3 {[%clk 0:00:09.3]} 26. Qxe3 {[%clk 0:00:18.7]}
26... Qe7 {[%clk 0:00:09]} 27. Nf5 {[%clk 0:00:18.1]} 27... Qe6 {[%clk
0:00:09.2]} 28. Ng3 {[%clk 0:00:18.2]} 28... Rc8 {[%clk 0:00:07.6]} 29. Re1
{[%clk 0:00:18]} 29... Qg6 {[%clk 0:00:07.6]} 30. Re2 {[%clk 0:00:16.9]} 30...
e4 {[%clk 0:00:06.6]} 31. h4 {[%clk 0:00:16.5]} 31... f5 {[%clk 0:00:05.8]} 32.
h5 {[%clk 0:00:15.9]} 32... Qf7 {[%clk 0:00:05.7]} 33. Qf4 {[%clk 0:00:15.7]}
33... Rf8 {[%clk 0:00:05.3]} 34. h6 {[%clk 0:00:15.9]} 34... g6 {[%clk
0:00:05.7]} 35. Rd2 {[%clk 0:00:16.1]} 35... Re8 {[%clk 0:00:05.9]} 36. Rd6
{[%clk 0:00:15.3]} 36... Bd5 {[%clk 0:00:05.1]} 37. Rf6 {[%clk 0:00:14.8]} 37...
Qg8 {[%clk 0:00:05.1]} 38. Qd2 {[%clk 0:00:14.9]} 38... Ba2+ {[%clk 0:00:05.2]}
39. Kc1 {[%clk 0:00:14.9]} 39... Qd5 {[%clk 0:00:05.7]} 40. Qc3 {[%clk
0:00:14.5]} 40... Qc4 {[%clk 0:00:05.2]} 41. Rf8# {[%clk 0:00:13.9]} 1-0

[Event "*** Titled Tuesday Blitz"]
[Site "Chess.com"]
[Date "2020.04.14"]
[Round "1"]
[White "Lysiak_Poltorak"]
[Black "JozefKneht"]
[Result "0-1"]
[WhiteElo "2238"]
[BlackElo "2604"]
[TimeControl "180+1"]
[EndTime "10:07:26 PDT"]
[Termination "JozefKneht won by resignation"]

1. d4 {[%clk 0:03:00.9]} 1... d5 {[%clk 0:02:56.8]} 2. c4 {[%clk 0:03:01]} 2...
e6 {[%clk 0:02:56.5]} 3. Nc3 {[%clk 0:03:00.7]} 3... Nf6 {[%clk 0:02:57]} 4.
cxd5 {[%clk 0:03:00]} 4... exd5 {[%clk 0:02:55.6]} 5. Bg5 {[%clk 0:03:00.3]}
5... Be7 {[%clk 0:02:54.9]} 6. e3 {[%clk 0:03:00.3]} 6... O-O {[%clk 0:02:55.4]}
7. Bd3 {[%clk 0:02:59.1]} 7... c6 {[%clk 0:02:55.8]} 8. Qc2 {[%clk 0:02:58.5]}
8... Nbd7 {[%clk 0:02:56.2]} 9. Nge2 {[%clk 0:02:57.7]} 9... Re8 {[%clk
0:02:56.4]} 10. O-O {[%clk 0:02:55.2]} 10... Nf8 {[%clk 0:02:57.3]} 11. Rad1
{[%clk 0:02:51.8]} 11... Be6 {[%clk 0:02:57.5]} 12. f3 {[%clk 0:02:46.7]} 12...
Rc8 {[%clk 0:02:56.2]} 13. e4 {[%clk 0:02:24.8]} 13... dxe4 {[%clk 0:02:57.1]}
14. fxe4 {[%clk 0:02:23.9]} 14... Ng4 {[%clk 0:02:54.9]} 15. Bf4 {[%clk
0:02:10.6]} 15... Ng6 {[%clk 0:02:51.3]} 16. e5 {[%clk 0:02:02.8]} 16... Nxf4
{[%clk 0:01:50.5]} 17. Bxh7+ {[%clk 0:02:01]} 17... Kh8 {[%clk 0:01:49.5]} 18.
Nxf4 {[%clk 0:02:00.8]} 18... Ne3 {[%clk 0:01:45.6]} 19. Qe2 {[%clk 0:01:45.1]}
19... Kxh7 {[%clk 0:01:35.4]} 20. Nxe6 {[%clk 0:01:37.2]} 20... fxe6 {[%clk
0:01:34.8]} 21. Qxe3 {[%clk 0:01:27.3]} 21... Kg8 {[%clk 0:01:34.8]} 22. Rf3
{[%clk 0:01:21.9]} 22... c5 {[%clk 0:01:25.2]} 23. d5 {[%clk 0:01:15.1]} 23...
exd5 {[%clk 0:01:18]} 24. Nxd5 {[%clk 0:01:14.1]} 24... c4 {[%clk 0:01:04.3]}
25. Nf6+ {[%clk 0:00:46.1]} 25... Bxf6 {[%clk 0:00:57.9]} 26. Rxd8 {[%clk
0:00:46.1]} 26... Rcxd8 {[%clk 0:00:58.5]} 27. Rf5 {[%clk 0:00:36.4]} 27... Rd5
{[%clk 0:00:53.7]} 28. h3 {[%clk 0:00:22.9]} 28... Bxe5 {[%clk 0:00:49.9]} 29.
Qf3 {[%clk 0:00:20.5]} 29... Rd7 {[%clk 0:00:34.4]} 30. Qh5 {[%clk 0:00:03.6]}
30... Rde7 {[%clk 0:00:30]} 31. Qg6 {[%clk 0:00:04]} 31... Bxb2 {[%clk
0:00:28.1]} 32. Kf2 {[%clk 0:00:03.4]} 32... Bd4+ {[%clk 0:00:24.5]} 33. Kf3
{[%clk 0:00:03.6]} 33... c3 {[%clk 0:00:24.6]} 34. Kg4 {[%clk 0:00:03.9]} 34...
c2 {[%clk 0:00:23.8]} 35. Rh5 {[%clk 0:00:03.4]} 35... Re4+ {[%clk 0:00:19.9]}
36. Kf3 {[%clk 0:00:03.3]} 36... c1=Q {[%clk 0:00:18.9]} 37. Qh7+ {[%clk
0:00:03.7]} 37... Kf7 {[%clk 0:00:17.3]} 38. Rf5+ {[%clk 0:00:04.2]} 38... Bf6
{[%clk 0:00:17.3]} 39. Qh5+ {[%clk 0:00:04.2]} 39... Kg8 {[%clk 0:00:17.2]} 40.
Qxe8+ {[%clk 0:00:03.9]} 40... Rxe8 {[%clk 0:00:16]} 0-1

[Event "*** Titled Tuesday Blitz"]
[Site "Chess.com"]
[Date "2020.04.14"]
[Round "1"]
[White "JesseFebruary"]
[Black "SmirnovTimofey2000"]
[Result "0-1"]
[WhiteElo "1754"]
[BlackElo "2514"]
[TimeControl "180+1"]
[EndTime "10:07:26 PDT"]
[Termination "SmirnovTimofey2000 won on time"]

1. e4 {[%clk 0:02:58.2]} 1... c5 {[%clk 0:02:59.2]} 2. Nf3 {[%clk 0:02:55.6]}
2... d6 {[%clk 0:02:59.1]} 3. d4 {[%clk 0:02:55.2]} 3... cxd4 {[%clk 0:03:00]}
4. Nxd4 {[%clk 0:02:54.4]} 4... Nf6 {[%clk 0:03:00.9]} 5. Nc3 {[%clk 0:02:52.4]}
5... a6 {[%clk 0:03:01.4]} 6. Be2 {[%clk 0:02:37.6]} 6... e5 {[%clk 0:03:00.5]}
7. Nb3 {[%clk 0:02:36.2]} 7... Be7 {[%clk 0:03:00.6]} 8. Be3 {[%clk 0:02:35.5]}
8... Be6 {[%clk 0:03:00.5]} 9. O-O {[%clk 0:02:35.1]} 9... O-O {[%clk
0:02:59.9]} 10. h3 {[%clk 0:02:33.3]} 10... Nc6 {[%clk 0:02:54.9]} 11. f4 {[%clk
0:02:32.5]} 11... exf4 {[%clk 0:02:54.2]} 12. Bxf4 {[%clk 0:02:33.4]} 12... d5
{[%clk 0:02:54.3]} 13. exd5 {[%clk 0:02:13.5]} 13... Nxd5 {[%clk 0:02:49.3]} 14.
Nxd5 {[%clk 0:02:13.1]} 14... Bxd5 {[%clk 0:02:42.1]} 15. Qd2 {[%clk 0:02:09.4]}
15... Bf6 {[%clk 0:02:36.9]} 16. Rad1 {[%clk 0:01:54.8]} 16... Re8 {[%clk
0:02:05.5]} 17. Bf3 {[%clk 0:01:44.3]} 17... Qb6+ {[%clk 0:01:40.8]} 18. Kh1
{[%clk 0:01:24.2]} 18... Bxf3 {[%clk 0:01:35.1]} 19. Rxf3 {[%clk 0:01:25.1]}
19... Rad8 {[%clk 0:01:34.5]} 20. Qc1 {[%clk 0:01:14.9]} 20... Rxd1+ {[%clk
0:01:23.2]} 21. Qxd1 {[%clk 0:01:13.2]} 21... Bxb2 {[%clk 0:01:21.5]} 22. Rf1
{[%clk 0:00:58.5]} 22... Bf6 {[%clk 0:01:16]} 23. Re1 {[%clk 0:00:49.8]} 23...
Rd8 {[%clk 0:01:06.6]} 24. Qe2 {[%clk 0:00:46.1]} 24... g6 {[%clk 0:00:56.3]}
25. Bh6 {[%clk 0:00:26.6]} 25... Ne7 {[%clk 0:00:26.2]} 26. Rf1 {[%clk
0:00:15.5]} 26... Nf5 {[%clk 0:00:21.5]} 27. Qf3 {[%clk 0:00:05.6]} 27... Qc6
{[%clk 0:00:14.4]} 28. Qxc6 {[%clk 0:00:04.8]} 28... bxc6 {[%clk 0:00:15.3]} 29.
g4 {[%clk 0:00:05.2]} 29... Ng3+ {[%clk 0:00:15]} 30. Kg2 {[%clk 0:00:06.1]}
30... Nxf1 {[%clk 0:00:14.8]} 31. Kxf1 {[%clk 0:00:07]} 31... Rd1+ {[%clk
0:00:15.1]} 32. Ke2 {[%clk 0:00:06.9]} 32... Rd5 {[%clk 0:00:15.8]} 33. Nd2
{[%clk 0:00:06.1]} 33... g5 {[%clk 0:00:15.5]} 34. Ne4 {[%clk 0:00:05.6]} 34...
Be7 {[%clk 0:00:15.8]} 35. Kf3 {[%clk 0:00:04.7]} 35... f6 {[%clk 0:00:15.8]}
36. h4 {[%clk 0:00:03.3]} 36... Kf7 {[%clk 0:00:15.4]} 37. hxg5 {[%clk 0:00:03]}
37... fxg5 {[%clk 0:00:16.3]} 0-1